[Event "Slovakian ECo-C Extraliga 2024-25"]
[Site "Slovakia"]
[Date "2025.01.19"]
[Round "4"]
[White "Turcan, Richard"]
[Black "Stalmach, Richard"]
[Result "0-1"]
[Annotator "TA"]
[ECO "E46"]
[WhiteElo "2353"]
[BlackElo "2455"]
[PlyCount "66"]
[EventDate "2024.09.12"]
[EventType "team-tourn"]
[EventCountry "SVK"]
[SourceTitle "playchess.com"]
[Source "ChessBase"]
[SourceQuality "1"]
[TimeControl "5400+30"]

{[%evp 13,66,0,0,0,0,0,0,0,0,0,6,0,0,0,0,0,0,0,0,0,0,0,0,0,0,0,0,0,0,0,0,0,0,0,0,0,0,0,0,0,0,0,0,0,0,-274,-286,-565,-533,-999,-989,-1152,-936,-889,-498]} 1. d4 {[%emt 0:00:12]} Nf6 {[%emt 0:00:05]} 2. c4 {[%emt 0:00:13]} e6 {[%emt 0:00:05]} 3. Nc3 {[%emt 0:00:21]} Bb4 {[%emt 0:00:05]} 4. e3 {[%emt 0:00:56]} O-O {[%emt 0:00:15]} 5. Bd2 {[%emt 0:00:07]} d5 {[%emt 0:00:13]} 6. Nf3 {[%emt 0:00:51]} b6 {[%emt 0:00:08]} 7. cxd5 {[%emt 0:02:17]} exd5 {[%emt 0:00:06]} 8. Rc1 {[%emt 0:01:35]} Bb7 {[%emt 0:00:19]} 9. Bd3 {[%emt 0:00:38]} Re8 {[%emt 0:00:07]} 10. Ne5 {[%emt 0:04:54] The position is equal.} Bf8 {[%emt 0:01:26]} 11. O-O {[%emt 0:02:45]} c5 {[%emt 0:00:15]} 12. f4 {[%emt 0:02:03]} Nc6 {[%emt 0:00:34]} 13. Ne2 {[%emt 0:02:58]} Rc8 {[%emt 0:01:16]} 14. Be1 {[%emt 0:04:18]} Ne4 {[%emt 0:02:09]} 15. Bxe4 {[%emt 0:00:19]} dxe4 {[%emt 0:00:06]} 16. Nxf7 {[%emt 0:13:31]} Kxf7 {[%emt 0:02:00]} 17. Qb3+ {[%emt 0:00:15]} c4 {[%emt 0:00:34]} 18. Qxc4+ {[%emt 0:05:45]} Kg6 $1 {[%emt 0:00:24][%cal Oc6b4] Hoping for ...Nb4!} 19. f5+ {[%emt 0:01:05]} Kh6 {[%emt 0:00:41][%cal Oc6b4] And now ...Nb4! would win.} 20. Bg3 {[%emt 0:20:02]} Ne5 {[%emt 0:05:17] Prevents Qf7} 21. Qg8 {[%emt 0:18:59]} Be7 $1 {[%emt 0:02:23]} 22. Rxc8 {[%emt 0:01:54]} Bxc8 {[%emt 0:00:24] A strong pair of Bishops.} 23. Bf4+ {[%emt 0:00:20]} Bg5 {[%emt 0:00:07]} 24. Bxg5+ {[%emt 0:00:12]} Qxg5 {[%emt 0:00:06]} 25. Qxe8 {[%emt 0:00:45]} Qxe3+ {[%emt 0:00:08]} 26. Kh1 $1 {[%emt 0:00:40]} (26. Rf2 $2 Nd3 27. h3 (27. Qc6+ $2 g6 $19) 27... Qxf2+ $19) 26... Qxe2 {[%emt 0:00:07]} 27. Rc1 {[%emt 0:06:13]} Nd3 $40 {[%emt 0:00:16][%mdl 128] Black is up to no good.} 28. Rc6+ {[%emt 0:03:39]} (28. Rxc8 $2 Qf1#) 28... Kg5 {[%emt 0:00:07][%cal Re2d1] Some like it hot} 29. Qe7+ $2 {[%emt 0:00:39][%mdl 8192] [#]} (29. Qxc8 $2 Qf1#) (29. h3 $1 $11) 29... Kf4 $1 $19 {[%emt 0:00:08][%cal Re2d1]} (29... Kh5 30. Qf7+ Kh4 31. Qe7+ (31. Rxc8 $2 Qf1#) 31... Kh5 32. Qf7+ Kh4 33. Qe7+ (33. Rxc8 $2 Qf1#) 33... Kh5 $11) 30. Qh4+ $2 {[%emt 0:01:29] [#]} (30. h3 Qe1+ (30... Bxf5 31. Qh4+ Ke3 32. Qg5+ Kxd4 33. Qxf5 $18) 31. Kh2 Qg3+ (31... Bxf5 $2 32. Qxg7 Ke3 33. Qg5+ Kxd4 34. Rd6+ Kc5 35. Qe7 $18) 32. Kg1 Qf2+ (32... Bxf5 $2 33. Qd6+ Ke3 34. Qxg3+ $18) 33. Kh1 Bxf5 34. Qxg7) 30... Ke3 $1 {[%emt 0:00:06][%cal Re2f1] Black is clearly winning.} (30... Kxf5 31. g4+ (31. Qh3+ Kg5 $11) 31... Qxg4 32. Qxg4+ Kxg4 33. Rxc8 $11) 31. Qg5+ {[%emt 0:01:52]} Kf2 $1 {[%emt 0:08:24][%cal Re2f1]} 32. Qg3+ {[%emt 0:01:38]} Kf1 {[%emt 0:00:05] ( -> ...Nf2+)} 33. h3 {[%emt 0:01:53]} Qf2 {[%emt 0:00:15] Weighted Error Value: White=0.34/Black=0.00 (flawless) .  Loses game:     	White=1     	---        Mistake:       	White=1     	---        Inaccurate:     	White=1     	---        OK:         	White=12    	Black=11     Best:        	White=4     	Black=3      Strong:       	White=1     	Black=5} 0-1

[Event "Slovakian ECo-C Extraliga 2024-25"]
[Site "Slovakia"]
[Date "2025.01.19"]
[Round "4"]
[White "Pacher, Milan"]
[Black "Molnar, Erno"]
[Result "1/2-1/2"]
[Annotator "TA"]
[ECO "C54"]
[WhiteElo "2317"]
[BlackElo "2220"]
[PlyCount "72"]
[EventDate "2024.09.12"]
[EventType "team-tourn"]
[EventCountry "SVK"]
[SourceTitle "playchess.com"]
[Source "ChessBase"]
[SourceQuality "1"]
[TimeControl "5400+30"]

{[%evp 9,72,19,31,19,29,0,12,12,10,0,26,-8,21,32,45,30,46,37,52,42,27,37,41,27,40,40,41,35,41,44,40,46,79,32,33,47,43,39,47,40,62,58,57,62,52,16,16,18,17,0,0,0,0,0,0,0,0,0,0,0,0,0,0,0,0]} 1. e4 {[%emt 0:00:04]} e5 {[%emt 0:00:04]} 2. Nf3 {[%emt 0:00:04]} Nc6 {[%emt 0:00:05]} 3. Bc4 {[%emt 0:00:05]} Bc5 {[%emt 0:00:09]} 4. c3 {[%emt 0:00:06]} Nf6 {[%emt 0:00:09]} 5. d3 {[%emt 0:00:11]} a6 {[%emt 0:03:18]} 6. a4 {[%emt 0:01:21] C54: Giuoco Piano: 4 c3 Nf6, main lines with 5 d4 and 5 d3.} Ba7 {[%emt 0:01:38]} 7. Bg5 {[%emt 0:01:09]} d6 {[%emt 0:07:01]} 8. Nbd2 {[%emt 0:00:06]} h6 {[%emt 0:15:41]} 9. Bh4 {[%emt 0:00:03]} Qe7 {[%emt 0:02:46] The main line 9...Qe7 scores better than 9...g5.} 10. b4 {[%emt 0:01:10][%cal Bb2b4,Bb4b5][%mdl 32]} Be6 {[%emt 0:18:36]} 11. O-O {[%emt 0:01:39]} Bxc4 {[%emt 0:06:08]} 12. Nxc4 {[%emt 0:00:05]} Qe6 {[%emt 0:01:57]} 13. Bxf6 {[%emt 0:07:21]} Qxf6 {[%emt 0:01:10]} 14. b5 {[%emt 0:00:06]} Ne7 {[%emt 0:06:28]} 15. Rb1 {[%emt 0:01:47]} O-O {[%emt 0:03:17]} 16. a5 $146 {[%emt 0:03:28]} (16. b6 cxb6 17. Nxb6 Qe6 18. Nxa8 Rxa8 19. Rxb7 {1-0 Zwirs,N (2467)-Van der Hagen,L (2334) Dortmund Sparkassen op-A 51st 2024 (4)}) 16... axb5 {[%emt 0:20:26]} 17. Rxb5 {[%emt 0:00:07]} Rfb8 {[%emt 0:00:13]} 18. Qb3 {[%emt 0:03:36] White plays on the queen side and is better} b6 {[%emt 0:00:39]} 19. axb6 {[%emt 0:00:25]} Bxb6 {[%emt 0:00:10]} 20. Nxb6 {[%emt 0:00:07]} cxb6 {[%emt 0:00:06]} 21. Rxb6 {[%emt 0:01:08] White is more active.} (21. Nd2 $16) 21... Rxb6 $14 {[%emt 0:00:06]} 22. Qxb6 {[%emt 0:00:07]} Ng6 {[%emt 0:00:48][%cal Be7g6,Bg6f8,Bf8e6,Be6d4][%mdl 32]} 23. Qe3 {[%emt 0:05:06]} Ra2 {[%emt 0:01:50]} 24. g3 {[%emt 0:00:56] Prevents Nf4.} Rc2 {[%emt 0:00:39]} 25. c4 {[%emt 0:01:17]} Nf8 {[%emt 0:00:42]} 26. Nh4 {[%emt 0:01:44]} Ne6 {[%emt 0:00:26]} 27. Nf5 {[%emt 0:01:04][%cal Of1c1]} Nd4 $1 {[%emt 0:00:52] The position is equal.} 28. Nxd4 {[%emt 0:04:04]} exd4 $11 {[%emt 0:00:12][%mdl 4096] Endgame KQR-KQR. White is a pawn up.} 29. Qe1 {[%emt 0:00:13]} (29. Qf4 {simplifies} Qxf4 30. gxf4 f5 31. Re1) 29... Qf3 {[%emt 0:01:30]} 30. Qd1 {[%emt 0:00:58]} Re2 {[%emt 0:00:52]} 31. Qb1 {[%emt 0:14:11]} Kh7 {[%emt 0:00:48]} 32. Qb5 {[%emt 0:03:13]} Qxd3 {[%emt 0:04:19]} 33. Qf5+ {[%emt 0:00:08]} Kg8 {[%emt 0:00:13][%cal Og7g6]} 34. Qc8+ {[%emt 0:00:05]} Kh7 {[%emt 0:00:04]} 35. Qf5+ {[%emt 0:00:04]} Kg8 {[%emt 0:00:05][%cal Og7g6]} 36. Qc8+ {[%emt 0:00:03]} Kh7 {[%emt 0:00:12] Weighted Error Value: White=0.08 (flawless) /Black=0.06 (flawless)   Mistake:       	White=1     	---        Inaccurate:     	White=3     	Black=3      OK:         	White=16    	Black=12     Best:        	White=1     	Black=2      Strong:       	---       	Black=1} 1/2-1/2

[Event "Slovakian ECo-C Extraliga 2024-25"]
[Site "Slovakia"]
[Date "2025.01.19"]
[Round "4"]
[White "Hros, Roman"]
[Black "Straka, Jozef"]
[Result "1/2-1/2"]
[Annotator "TA"]
[ECO "C47"]
[WhiteElo "2230"]
[BlackElo "2279"]
[PlyCount "120"]
[EventDate "2024.09.12"]
[EventType "team-tourn"]
[EventCountry "SVK"]
[SourceTitle "playchess.com"]
[Source "ChessBase"]
[SourceQuality "1"]
[TimeControl "5400+30"]

{[%evp 17,120,-2,0,0,4,-2,6,7,14,8,22,27,52,44,49,40,48,57,51,62,32,49,43,42,68,85,120,81,57,18,89,20,62,13,118,47,1,26,152,-327,0,0,159,180,139,133,149,0,-7,-91,-87,-152,-34,-29,-53,-53,0,-77,-11,-97,-92,-97,-88,-93,-47,-47,0,0,0,-8,0,0,0,0,0,0,0,0,0,0,0,0,0,0,0,0,0,0,0,0,0,0,0,0,0,0,0,0,0,0,0,0,0,0,0]} 1. e4 {[%emt 0:00:03]} e5 {[%emt 0:00:05]} 2. Nf3 {[%emt 0:00:19]} Nc6 {[%emt 0:00:03]} 3. Nc3 {[%emt 0:00:52]} Nf6 {[%emt 0:00:04]} 4. d4 {[%emt 0:00:28]} exd4 {[%emt 0:00:04]} 5. Nxd4 {[%emt 0:00:03]} Bb4 {[%emt 0:00:16]} 6. Nxc6 {[%emt 0:00:03]} bxc6 {[%emt 0:00:12]} 7. Bd3 {[%emt 0:00:06]} d5 {[%emt 0:00:19]} 8. exd5 {[%emt 0:00:22]} cxd5 {[%emt 0:00:10]} 9. O-O {[%emt 0:00:12]} O-O {[%emt 0:00:16]} 10. h3 {[%emt 0:01:33]} Be6 {[%emt 0:05:33]} 11. Qf3 {[%emt 0:01:22]} Be7 {[%emt 0:03:57]} 12. Bf4 {[%emt 0:15:17]} c5 {[%emt 0:03:10][%cal Bc7c5,Bc5c4][%mdl 32]} 13. Rad1 {[%emt 0:09:25]} Qb6 {[%emt 0:06:11][%cal Oc5c4]} 14. b3 {[%emt 0:15:15]} c4 {[%emt 0:05:56]} 15. Be2 $1 {[%emt 0:07:20]} Rfd8 {[%emt 0:04:54]} 16. Be5 {[%emt 0:03:12]} Qa5 {[%emt 0:06:52]} 17. Qg3 {[%emt 0:07:58]} Rac8 {[%emt 0:01:43] Against Bc7} 18. bxc4 {[%emt 0:08:06]} dxc4 {[%emt 0:01:54]} 19. Rxd8+ {[%emt 0:01:15]} Qxd8 {[%emt 0:06:02]} 20. Bf3 {[%emt 0:05:09]} Qa5 {[%emt 0:09:30]} 21. Rb1 {[%emt 0:02:30]} Kh8 {[%emt 0:05:04]} 22. Rb7 {[%emt 0:01:13]} Bf8 {[%emt 0:00:38]} 23. Bd4 {[%emt 0:09:07][%cal Og3h4]} (23. Qg5 {is interesting.} Rc5 24. Rb8 Bc8 25. Qf4) 23... a6 {[%emt 0:07:39]} (23... Qf5 $11) 24. Qh4 {[%emt 0:02:38]} (24. Qf4 $16) 24... h6 {[%emt 0:07:20]} 25. Rb6 {[%emt 0:03:53]} (25. Qf4 $14 {deserves consideration.}) 25... Kh7 {[%emt 0:03:47]} (25... Kg8 $11) 26. Bb7 {[%emt 0:03:50]} (26. Rxe6 $1 $16 fxe6 27. Bxf6 gxf6 28. Qxf6) 26... Rd8 $14 {[%emt 0:05:51]} 27. Rxa6 {[%emt 0:01:25]} Qb4 {[%emt 0:03:57]} (27... Qc7 $11 28. Be4+ (28. Bxf6 gxf6 29. Bf3 f5 $11) 28... Nxe4 29. Qxe4+ Kg8) 28. Ra8 $2 {[%emt 0:00:57]} (28. Bxf6 $16 {and life is bright.} gxf6 (28... Qxb7 $2 29. Rxe6 Rc8 30. Re3 $18) 29. Qxf6) 28... g5 $2 {[%emt 0:02:05]} (28... Qxb7 $19 29. Rxd8 Be7) 29. Be4+ $11 {[%emt 0:00:30]} Kg8 $2 {[%emt 0:00:57]} (29... Kg7 $1 $11 30. Bxf6+ Kxf6) 30. Rxd8 $16 {[%emt 0:00:20]} gxh4 {[%emt 0:01:08]} 31. Bxf6 {[%emt 0:00:23]} Qa3 {[%emt 0:04:32] [#]} 32. Rd1 $2 {[%emt 0:00:29] Prevents Qc1. White has more active pieces.} ({White should play} 32. Kf1 $1 $16) 32... Be7 $11 {[%emt 0:01:29]} 33. Nb1 {[%emt 0:00:34]} (33. Bd4 $11) 33... Qa7 $17 {[%emt 0:00:56]} (33... Qxa2 $2 {loses.} 34. Bxe7 f5 35. Bf3 $18) 34. Bd4 {[%emt 0:00:41]} (34. Bxe7 $142 Qxe7 35. Nc3) 34... Qxa2 {[%emt 0:01:28]} (34... Bc5 $17 35. Bf6 Bxf2+ 36. Kh1 Bb6 (36... Qxa2 37. Rd8#)) 35. Nd2 $15 {[%emt 0:00:12] Ra1 would now be deadly.} Qa5 {[%emt 0:01:08]} 36. Nf3 {[%emt 0:00:41]} f5 {[%emt 0:01:43]} (36... Bd5 $15 37. Ra1 Qb5 38. Bxd5 Qxd5) 37. Bc6 {[%emt 0:00:42]} (37. Ra1 $11 Qc7 38. Ba8) 37... Qc7 {[%emt 0:01:13]} (37... Bc5 $17) 38. Ba4 {[%emt 0:00:32]} (38. Ne5 $11 {remains equal.}) 38... Bd5 $17 {[%emt 0:00:40]} 39. c3 {[%emt 0:00:28]} Bxf3 {[%emt 0:00:30]} 40. gxf3 {[%emt 0:00:03] [#]} Bc5 {[%emt 0:00:42]} (40... Qa5 $1 $17 {[%cal Ra5a4]} 41. Bc6 Kf8) 41. Bb5 $1 $15 {[%emt 0:00:00]} Bd6 {[%emt 0:00:00]} (41... Bxd4 $15 42. Rxd4 Kf8) 42. Ra1 $11 {[%emt 0:00:00]} Bc5 {[%emt 0:00:00]} 43. Bxc4+ {[%emt 0:00:00] A strong pair of Bishops.} Kh7 {[%emt 0:00:00] Strongly threatening ...Bxd4.} 44. Bd3 {[%emt 0:00:00]} Bxd4 {[%emt 0:00:00]} 45. Bxf5+ {[%emt 0:00:00]} Kh8 {[%emt 0:00:00] ( -> ...Qg3+)} 46. cxd4 {[%emt 0:00:00][%mdl 4096] Endgame KQ-KRB} Qg7+ {[%emt 0:00:00]} 47. Kf1 {[%emt 0:00:00]} Qxd4 {[%emt 0:00:00]} 48. Ra8+ {[%emt 0:00:00]} Kg7 {[%emt 0:00:00]} 49. Be4 {[%emt 0:00:00]} Qc5 {[%emt 0:00:00]} 50. Ra1 {[%emt 0:00:20]} Qb5+ {[%emt 0:00:00]} 51. Kg2 {[%emt 0:01:38]} Qg5+ {[%emt 0:00:06]} 52. Kh1 {[%emt 0:00:05] Rg1 would kill now.} Qc5 {[%emt 0:01:36]} 53. Rg1+ {[%emt 0:00:07]} Kf7 {[%emt 0:00:33]} 54. Rg2 {[%emt 0:00:58]} Qc1+ {[%emt 0:00:30]} 55. Rg1 {[%emt 0:00:02]} Qc5 {[%emt 0:00:10]} 56. Rf1 {[%emt 0:01:39]} Qc8 {[%emt 0:02:00]} 57. Bd5+ {[%emt 0:01:13]} Kf6 {[%emt 0:00:04]} 58. Kg2 {[%emt 0:00:13]} Qd7 {[%emt 0:00:53]} 59. Rd1 {[%emt 0:02:45]} Qg7+ {[%emt 0:00:15]} 60. Kf1 {[%emt 0:00:09]} Qd7 {[%emt 0:00:23]} 1/2-1/2

[Event "Slovakian ECo-C Extraliga 2024-25"]
[Site "Slovakia"]
[Date "2025.01.19"]
[Round "4"]
[White "Terbe, Julianna"]
[Black "Baidetskyi, Valentin"]
[Result "0-1"]
[Annotator "TA"]
[ECO "A46"]
[WhiteElo "2224"]
[BlackElo "2521"]
[PlyCount "108"]
[EventDate "2024.09.12"]
[EventType "team-tourn"]
[EventCountry "SVK"]
[SourceTitle "playchess.com"]
[Source "ChessBase"]
[SourceQuality "1"]
[TimeControl "5400+30"]

{[%evp 9,108,12,25,1,-8,-16,9,10,2,-31,-18,-23,-24,-20,-3,-7,0,0,0,0,0,0,0,0,0,-14,-18,-12,-12,-10,-9,-10,0,-16,-18,-18,-14,-10,11,0,0,0,0,0,0,0,0,0,0,-9,-10,-45,-40,-45,-37,-33,-10,-41,-7,-7,-20,-19,23,7,17,0,0,0,0,0,0,-75,-75,-75,-83,-100,-100,-113,-105,-116,-78,-87,-85,-92,-93,-258,-235,-335,-330,-507,-495,-449,-437,-376,-194,-847,-777,-847,-832,-792,-755]} 1. d4 {[%emt 0:00:07]} Nf6 {[%emt 0:00:14]} 2. Nf3 {[%emt 0:00:09]} e6 {[%emt 0:00:07]} 3. Bf4 {[%emt 0:00:07]} h6 {[%emt 0:00:13]} 4. c3 {[%emt 0:08:26]} c5 {[%emt 0:01:14]} 5. e3 {[%emt 0:02:06]} Nh5 {[%emt 0:16:49]} 6. Nbd2 $146 {[%emt 0:10:48] A46: 1 d4 Nf6 2 Nf3 e6: Torre, London and Colle Systems.} (6. Bg3 Nxg3 7. hxg3 d5 8. Nbd2 Nd7 9. Bd3 Be7 10. Qe2 O-O 11. O-O c4 12. Bc2 {1-0 Balog,I (2565)-Vitenberg,N (2297) Titled Tuesday intern op1 3rd March blitz 2020 (5)}) 6... Nxf4 {[%emt 0:01:15]} 7. exf4 {[%emt 0:00:05]} cxd4 {[%emt 0:02:33]} 8. Nxd4 {[%emt 0:00:19] The position is equal.} Nc6 {[%emt 0:00:40]} 9. Nc4 {[%emt 0:06:00]} Qc7 {[%emt 0:13:40]} 10. g3 {[%emt 0:08:55]} d5 {[%emt 0:02:13]} 11. Ne3 {[%emt 0:01:52]} Bc5 {[%emt 0:09:47]} 12. Nb3 {[%emt 0:03:30]} Bxe3 {[%emt 0:11:03]} 13. fxe3 {[%emt 0:00:08]} Qb6 {[%emt 0:06:09]} 14. Qe2 {[%emt 0:04:22]} e5 {[%emt 0:00:55]} 15. O-O-O {[%emt 0:03:02]} Be6 {[%emt 0:01:42]} 16. fxe5 {[%emt 0:09:45]} O-O {[%emt 0:04:45] Black sacrificed a pawn} 17. e4 {[%emt 0:07:04]} Rad8 {[%emt 0:14:39]} (17... Nxe5 $2 18. exd5 Bg4 19. Qxe5 $18) 18. exd5 {[%emt 0:13:15]} Bxd5 {[%emt 0:00:18]} 19. Bg2 {[%emt 0:00:04]} Bxg2 {[%emt 0:01:44]} (19... Bxb3 20. axb3 Qxb3 21. Rd6 $14) 20. Qxg2 {[%emt 0:00:05]} Nxe5 {[%emt 0:00:18]} 21. Kb1 {[%emt 0:02:24]} Ng4 {[%emt 0:03:33]} 22. Rxd8 {[%emt 0:07:43]} Rxd8 {[%emt 0:00:18]} (22... Qxd8 23. Qf3 Qd7 24. Nc5) 23. Nd4 {[%emt 0:00:26]} Ne5 {[%emt 0:07:17]} 24. Qe2 {[%emt 0:02:12]} Nc6 {[%emt 0:00:16]} 25. Nf5 {[%emt 0:01:53]} Qc5 {[%emt 0:00:44]} 26. Qg4 {[%emt 0:03:37][%csl Gf5][%cal Rg4g7] [#]} g6 {[%emt 0:00:25]} 27. Rf1 {[%emt 0:01:04]} (27. Nxh6+ Kg7 28. Qf4 Qd5 $15) 27... Kh7 {[%emt 0:00:30]} 28. Nd4 {[%emt 0:02:03]} Qc4 {[%emt 0:00:36]} 29. Qf4 {[%emt 0:00:55]} Nxd4 {[%emt 0:00:13]} 30. cxd4 $11 {[%emt 0:00:28][%mdl 4096] Endgame KQR-KQR} (30. Rd1 $5) 30... Qd3+ {[%emt 0:00:20]} 31. Ka1 {[%emt 0:00:06]} Rd7 {[%emt 0:00:04][%cal Oa7a5]} (31... Rxd4 32. Qxf7+ Kh8 33. Qf8+ Kh7 34. Rf7#) 32. a3 $1 {[%emt 0:01:13]} b5 {[%emt 0:00:11][%cal Ob5b4]} (32... Rxd4 33. Qxf7+ Kh8 34. Qf8+ Kh7 35. Rf7#) 33. Rf2 {[%emt 0:01:12]} (33. Rc1 $5) 33... a5 {[%emt 0:01:39][%cal Ob5b4]} (33... Qxd4 34. Qxd4 Rxd4 35. Rxf7+ Kg8 36. Rxa7 $18) 34. Rd2 {[%emt 0:01:22]} Qc4 {[%emt 0:00:21]} 35. d5 {[%emt 0:00:30]} Qc1+ {[%emt 0:00:01]} (35... Qxf4 36. gxf4 Kg7 37. d6 Kf6) 36. Ka2 {[%emt 0:00:06]} b4 {[%emt 0:00:16]} 37. axb4 {[%emt 0:00:50]} axb4 {[%emt 0:00:01]} 38. Kb3 {[%emt 0:00:30][%cal Od5d6]} Ra7 $1 {[%emt 0:01:25]} 39. Rd4 {[%emt 0:00:36]} (39. Kxb4 $2 Rb7+ 40. Ka5 Qc5+ 41. Ka6 Qb6#) 39... Qa1 {[%emt 0:00:27]} 40. Rxb4 {[%emt 0:00:27]} (40. Rd2 $11) 40... Qd1+ $17 {[%emt 0:00:45]} (40... Qa2+ 41. Kc2 Qxd5 42. Qd4 Qf5+ 43. Kb3 Qf3+ 44. Qc3) 41. Kc3 {[%emt 0:00:00]} (41. Kc4 $2 Rc7+ 42. Qxc7 Qc2+ 43. Kb5 Qxc7 $19) 41... Qxd5 {[%emt 0:00:00]} 42. Qd4 {[%emt 0:00:00]} Qf3+ {[%emt 0:00:00]} 43. Qd3 {[%emt 0:00:00]} Qg2 {[%emt 0:00:00]} 44. Qd4 {[%emt 0:00:00] Inhibits Qxh2.} Ra8 {[%emt 0:00:00]} 45. Qf4 {[%emt 0:00:00]} Qd5 {[%emt 0:00:00]} (45... Qxh2 46. Qxf7+ Kh8 47. Qf6+ (47. Qxg6 Rf8 $14) 47... Kg8 48. Qxg6+ Kh8 49. Qf6+ Kh7 50. Rb7+ Kg8 51. Qg7#) 46. Rd4 {[%emt 0:00:00]} Qe6 {[%emt 0:00:00]} 47. b3 $2 {[%emt 0:00:00] [#] White does not recover from this.} (47. Kc2 $17) 47... Qe1+ $19 {[%emt 0:00:00]} 48. Qd2 {[%emt 0:00:00]} (48. Kc4 {was necessary.} Kg8 49. Qd6) 48... Qa1+ {[%emt 0:00:09]} 49. Qb2 {[%emt 0:00:00]} (49. Kd3 $142) 49... Rc8+ {[%emt 0:01:27]} 50. Rc4 {[%emt 0:00:00]} Qa5+ {[%emt 0:00:01]} 51. Kc2 {[%emt 0:00:00]} Re8 {[%emt 0:00:17]} (51... Qf5+ $142 52. Kc3 Qe5+ 53. Kc2 Qe4+ 54. Kc3 Qe3+ 55. Kc2 Rd8) 52. b4 $2 {[%emt 0:03:52]} (52. Kb1) 52... Re2+ {[%emt 0:02:09] Black is clearly winning.} 53. Kd3 {[%emt 0:00:04]} Qd5+ {[%emt 0:00:06]} ({Weaker is} 53... Rxb2 54. bxa5 Ra2 55. Rc5 $11) 54. Kxe2 {[%emt 0:02:50]} Qg2+ {[%emt 0:00:02] Weighted Error Value: White=0.27 (precise) /Black=0.10 (very precise)   Loses game:     	White=1     	---        Mistake:       	White=4     	Black=1      Inaccurate:     	White=3     	Black=3      OK:         	White=13    	Black=20     Best:        	White=6     	Black=4      Strong:       	White=1     	Black=1} ({And not} 54... Qxc4+ 55. Kf2 $11) 0-1

[Event "Slovakian ECo-C Extraliga 2024-25"]
[Site "Slovakia"]
[Date "2025.01.19"]
[Round "4"]
[White "Sedlacek, Pavol"]
[Black "Brnusak, Tomas"]
[Result "1/2-1/2"]
[Annotator "TA"]
[ECO "A41"]
[WhiteElo "2183"]
[BlackElo "2236"]
[PlyCount "86"]
[EventDate "2024.09.12"]
[EventType "team-tourn"]
[EventCountry "SVK"]
[SourceTitle "playchess.com"]
[Source "ChessBase"]
[SourceQuality "1"]
[TimeControl "5400+30"]

{[%evp 9,86,10,14,13,13,1,6,8,9,-27,-22,-44,-23,-41,-39,-54,-14,-14,-18,-18,-33,-30,-20,-26,-33,-45,-51,-48,-2,0,6,-4,0,0,0,0,0,0,0,0,0,-7,0,0,0,0,0,-8,0,-1,-7,-16,-17,-29,-9,-146,-131,-88,-32,-35,-3,-3,-3,-3,0,0,0,0,0,0,0,0,0,0,0,0,0,0,0]} 1. d4 {[%emt 0:00:04]} d6 {[%emt 0:00:07]} 2. Nf3 {[%emt 0:00:07]} f5 {[%emt 0:00:07]} 3. b3 {[%emt 0:03:20]} Nf6 {[%emt 0:00:31][%cal Bg8f6,Bf6g4,Bg4e5][%mdl 32]} 4. Bb2 {[%emt 0:00:21]} g6 {[%emt 0:00:20]} 5. Nbd2 {[%emt 0:00:45]} Bg7 {[%emt 0:00:23]} 6. e3 {[%emt 0:00:20]} O-O {[%emt 0:01:17]} 7. c4 {[%emt 0:05:17]} e5 {[%emt 0:05:44]} 8. dxe5 {[%emt 0:06:59]} Ng4 {[%emt 0:00:11][%cal Rg4e5]} 9. h3 {[%emt 0:02:12]} Nxe5 {[%emt 0:00:07]} 10. Qc2 {[%emt 0:08:03]} Nbc6 {[%emt 0:03:22]} 11. a3 {[%emt 0:03:04] Dodges Nb4} Qe7 {[%emt 0:02:55]} 12. O-O-O {[%emt 0:11:08]} a6 {[%emt 0:09:00]} 13. Be2 {[%emt 0:02:17]} Rb8 {[%emt 0:03:27]} 14. Nxe5 {[%emt 0:03:46]} Nxe5 {[%emt 0:07:15]} 15. Nf3 {[%emt 0:01:28]} b5 {[%emt 0:03:03]} 16. Nxe5 {[%emt 0:06:29]} Bxe5 {[%emt 0:03:02]} 17. Bxe5 {[%emt 0:04:05]} Qxe5 {[%emt 0:02:44]} 18. Qb2 {[%emt 0:15:32]} Re8 {[%emt 0:05:43]} (18... Qe7 $15 {feels stronger.}) 19. Qxe5 $11 {[%emt 0:02:29]} Rxe5 {[%emt 0:00:07]} 20. cxb5 {[%emt 0:04:59]} axb5 {[%emt 0:00:19]} 21. Rd4 {[%emt 0:00:51]} Rb6 {[%emt 0:08:24]} 22. Rhd1 {[%emt 0:01:23]} Kf8 {[%emt 0:01:07]} 23. g3 {[%emt 0:01:43]} Be6 {[%emt 0:01:16]} 24. Kb2 {[%emt 0:02:44]} Ke7 {[%emt 0:01:51]} 25. Bf3 {[%emt 0:02:39]} Ra6 {[%emt 0:03:00]} 26. R4d2 {[%emt 0:04:16]} c5 {[%emt 0:02:23][%cal Bc7c5,Bc5c4][%mdl 32]} 27. h4 {[%emt 0:00:58]} c4 {[%emt 0:06:48]} 28. Bd5 {[%emt 0:00:55]} Bxd5 {[%emt 0:00:32]} 29. Rxd5 {[%emt 0:00:05]} Ke6 {[%emt 0:00:12]} 30. Rxe5+ {[%emt 0:01:10]} Kxe5 {[%emt 0:02:43][%mdl 4096] Endgame KR-KR} 31. Rd4 {[%emt 0:01:04]} d5 {[%emt 0:00:43]} 32. f4+ {[%emt 0:01:33] [#]} (32. h5 $11) 32... Kd6 $1 $17 {[%emt 0:00:26]} 33. a4 {[%emt 0:02:37]} bxa4 {[%emt 0:04:31]} (33... Ra5 $17 {...Kc5 is the strong threat.} 34. h5 gxh5 (34... bxa4 35. bxc4 gxh5 36. cxd5 $15)) 34. bxc4 $15 {[%emt 0:00:12]} a3+ {[%emt 0:00:05]} 35. Ka2 {[%emt 0:00:10]} Ra5 {[%emt 0:03:52]} 36. Rd3 {[%emt 0:00:54]} Kc6 {[%emt 0:00:25]} (36... Ke6 {simplifies} 37. cxd5+ Rxd5 38. Rxa3 Rd2+) 37. cxd5+ {[%emt 0:01:05]} Kd6 {[%emt 0:00:45]} 38. Rb3 {[%emt 0:00:51]} Ra7 {[%emt 0:07:25]} 39. Rd3 {[%emt 0:00:59]} Ra6 {[%emt 0:00:39]} 40. Rd4 {[%emt 0:00:50]} Kc5 {[%emt 0:04:44]} 41. Rd3 {[%emt 0:00:00]} Kd6 {[%emt 0:00:00]} 42. Rd4 {[%emt 0:00:00]} Kc5 {[%emt 0:00:00]} 43. Rd3 {[%emt 0:00:00]} Kd6 {[%emt 0:00:00]} 1/2-1/2